lending/lending_fUSD_20251116
["ID","MTS","AMOUNT","RATE_DAILY","PERIOD"]
[394095363,1763273441242,-340.5,0.00017478,2]
[394095364,1763273441251,-166.66,0.00017498,2]
[394095365,1763273441260,-168.0,0.0001756,2]
[394095366,1763273441269,-178.61,0.00017613,2]
[394095367,1763273441279,-595.37131296,0.00017632,2]
[394095368,1763273441288,-891.3485539,0.00017666,2]
[394095369,1763273441298,-201.18387658,0.00017689,2]
[394095370,1763273441307,-168.0,0.00017696,2]
[394095371,1763273441316,-420.0,0.00017703,2]
[394095372,1763273441326,-420.0,0.00017703,2]
[394095373,1763273441335,-171.0,0.00017725,2]
[394095374,1763273441345,-2686.44798173,0.00017728,2]
[394095375,1763273441357,-944.2079471,0.00017728,2]
[394095376,1763273441377,-1640.98892138,0.00017728,2]
[394095384,1763273443098,-1554.20462703,0.00017728,2]
[394095385,1763273443157,-3174.14052276,0.00017728,2]
[394095386,1763273443167,-1294.33,0.00017728,2]
[394095387,1763273443176,-7373.92,0.00017728,2]
[394095388,1763273443186,-239.97,0.00017728,2]
[394095389,1763273443196,-150.99,0.00017728,2]
[394095390,1763273443205,-8270.52,0.00017728,2]
[394095391,1763273443214,-8491.56,0.00017728,2]
[394095392,1763273443224,-9999.99,0.00017728,2]
[394095393,1763273443234,-9999.99,0.00017728,2]
[394095394,1763273443244,-4079.47,0.00017728,2]
[394095395,1763273443253,-168.0,0.00017753,2]
[394095396,1763273443263,-1680.0,0.00017792,2]
[394095397,1763273443273,-168.0,0.00017829,2]
[394095398,1763273443283,-166.66,0.00017838,2]
[394095399,1763273443292,-200.0,0.00017856,2]
[394095400,1763273443302,-168.0,0.00017859,2]
[394095401,1763273443311,-202.79317024,0.00017871,2]
[394095402,1763273443320,-161.0,0.000179,2]
[394095403,1763273443330,-162.03,0.000179,2]
[394095404,1763273443339,-162.01367149,0.000179,2]
[394095405,1763273443348,-944.75531172,0.000179,2]
[394095406,1763273443358,-171.80879442,0.000179,2]
[394095407,1763273443367,-168.0,0.00017962,2]
[394095408,1763273443376,-35450.4003301,0.00017971,2]
[394095409,1763273443386,-2951.65819927,0.00017971,2]
[394095410,1763273443399,-749.14828493,0.00017971,2]
[394095411,1763273443409,-151.0,0.00017971,2]
[394095412,1763273443418,-151.0,0.00017971,2]
[394095413,1763273443427,-164.572823,0.00017971,2]
[394095414,1763273443437,-151.0,0.00017971,2]
[394095415,1763273443448,-151.0,0.00017971,2]
[394095416,1763273443457,-155.46606,0.00017971,2]
[394095417,1763273443466,-151.0,0.00017971,2]
[394095418,1763273443476,-151.0,0.00017971,2]
[394095419,1763273443485,-702.689353,0.00017971,2]
[394095421,1763273443495,-245.95347907,0.00017971,2]
[394095445,1763273446218,-456.73587393,0.00017971,2]
[394095446,1763273446228,-702.689353,0.00017971,2]
[394095447,1763273446237,-702.689353,0.00017971,2]
[394095448,1763273446247,-151.0,0.00017971,2]
[394095449,1763273446256,-151.0,0.00017971,2]
[394095450,1763273446265,-151.0,0.00017971,2]
[394095451,1763273446275,-151.0,0.00017971,2]
[394095452,1763273446284,-151.0,0.00017971,2]
[394095453,1763273446293,-155.842467,0.00017971,2]
[394095454,1763273446302,-151.0,0.00017971,2]
[394095455,1763273446312,-151.0,0.00017971,2]
[394095456,1763273446321,-151.0,0.00017971,2]
[394095457,1763273446330,-151.0,0.00017971,2]
[394095458,1763273446340,-151.0,0.00017971,2]
[394095459,1763273446350,-151.0,0.00017971,2]
[394095460,1763273446359,-151.0,0.00017971,2]
[394095461,1763273446368,-417.701561,0.00017971,2]
[394095462,1763273446378,-155.092132,0.00017971,2]
[394095463,1763273446387,-417.701561,0.00017971,2]
[394095464,1763273446397,-151.0,0.00017971,2]
[394095465,1763273446406,-417.701561,0.00017971,2]
[394095466,1763273446416,-417.701561,0.00017971,2]
[394095467,1763273446425,-151.0,0.00017971,2]
[394095468,1763273446435,-151.0,0.00017971,2]
[394095469,1763273446444,-151.0,0.00017971,2]
[394095471,1763273446454,-151.0,0.00017971,2]
[394095473,1763273446463,-151.0,0.00017971,2]
[394095474,1763273446472,-151.0,0.00017971,2]
[394095475,1763273446482,-503.44954,0.00017971,2]
[394095476,1763273446491,-151.0,0.00017971,2]
[394095477,1763273446501,-503.44954,0.00017971,2]
[394095478,1763273446510,-151.0,0.00017971,2]
[394095480,1763273446519,-503.44954,0.00017971,2]
[394095482,1763273446528,-503.44954,0.00017971,2]
[394095484,1763273446538,-188.695857,0.00017971,2]
[394095486,1763273446546,-151.0,0.00017971,2]
[394095488,1763273446555,-214.206607,0.00017971,2]
[394095490,1763273446564,-151.0,0.00017971,2]
[394095492,1763273446573,-266.029318,0.00017971,2]
[394095494,1763273446583,-214.206607,0.00017971,2]
[394095496,1763273446592,-214.206607,0.00017971,2]
[394095498,1763273446601,-214.206607,0.00017971,2]
[394095500,1763273446611,-151.0,0.00017971,2]
[394095502,1763273446620,-151.0,0.00017971,2]
[394095504,1763273446629,-151.0,0.00017971,2]
[394095506,1763273446638,-151.0,0.00017971,2]
[394095508,1763273446647,-151.0,0.00017971,2]
[394095509,1763273446656,-281.454689,0.00017971,2]
[394095510,1763273446666,-787.21224,0.00017971,2]
[394095511,1763273446675,-151.0,0.00017971,2]
[394095512,1763273446684,-787.21224,0.00017971,2]
[394095513,1763273446693,-151.0,0.00017971,2]
[394095514,1763273446703,-787.21224,0.00017971,2]
[394095515,1763273446712,-151.0,0.00017971,2]
[394095516,1763273446721,-151.0,0.00017971,2]
[394095517,1763273446731,-155.49973,0.00017971,2]
[394095518,1763273446739,-151.0,0.00017971,2]
[394095519,1763273446749,-151.0,0.00017971,2]
[394095520,1763273446759,-151.0,0.00017971,2]
[394095521,1763273446769,-787.21224,0.00017971,2]
[394095522,1763273446778,-151.0,0.00017971,2]
[394095523,1763273446787,-151.0,0.00017971,2]
[394095524,1763273446796,-151.0,0.00017971,2]
[394095525,1763273446805,-151.0,0.00017971,2]
[394095526,1763273446814,-151.0,0.00017971,2]
[394095527,1763273446823,-151.0,0.00017971,2]
[394095528,1763273446832,-151.0,0.00017971,2]
[394095529,1763273446841,-151.0,0.00017971,2]
[394095530,1763273446851,-151.0,0.00017971,2]
[394095531,1763273446860,-151.0,0.00017971,2]
[394095532,1763273446870,-151.0,0.00017971,2]
[394095533,1763273446879,-151.0,0.00017971,2]
[394095534,1763273446888,-151.0,0.00017971,2]
[394095535,1763273446898,-151.0,0.00017971,2]
[394095536,1763273446908,-151.0,0.00017971,2]
[394095537,1763273446917,-151.0,0.00017971,2]
[394095538,1763273446926,-151.0,0.00017971,2]
[394095539,1763273446941,-151.0,0.00017971,2]
[394095540,1763273446951,-428.089946,0.00017971,2]
[394095541,1763273446960,-151.0,0.00017971,2]
[394095542,1763273446969,-428.089946,0.00017971,2]
[394095543,1763273446978,-428.089946,0.00017971,2]
[394095544,1763273446987,-428.089946,0.00017971,2]
[394095545,1763273446996,-151.0,0.00017971,2]
[394095546,1763273447006,-151.0,0.00017971,2]
[394095547,1763273447016,-545.234853,0.00017971,2]
[394095548,1763273447026,-545.234853,0.00017971,2]
[394095549,1763273447036,-525.8641707,0.00017971,2]
[394095800,1763273632211,1000.0,0.00013699,2]
[394095888,1763274540958,150.0,0.00030133,120]
[394095899,1763274632152,-1200.0,0.00016613,2]
[394095901,1763274632162,-300.0,0.00016613,2]
[394095902,1763274632171,-300.0,0.00016613,2]
[394095903,1763274632182,-2500.0,0.00016614,2]
[394095904,1763274632191,-1000.0,0.00016614,2]
[394095905,1763274632201,-1285.72915402,0.00016614,2]
[394095906,1763274632212,-659.618,0.00016614,2]
[394095907,1763274632223,-11975.65336345,0.00016614,2]
[394095908,1763274632269,-43610.17578253,0.00016614,2]
[394095909,1763274632279,-300.0,0.00016638,2]
[394095910,1763274632288,-250.0,0.00016663,2]
[394095911,1763274632297,-300.0,0.00016682,2]
[394095912,1763274632307,-300.0,0.00016682,2]
[394095913,1763274632315,-326.0993686,0.00016682,2]
[394095914,1763274632324,-250.0,0.0001671,2]
[394095915,1763274632334,-999.0,0.00016774,3]
[394095916,1763274632343,-32110.97095614,0.000168,2]
[394095967,1763274640327,-58543.36261848,0.000168,2]
[394095968,1763274640337,-8914.35290391,0.000169,2]
[394095969,1763274640347,-500.0,0.00016999,2]
[394095970,1763274640356,-500.0,0.00016999,2]
[394095971,1763274640366,-500.0,0.00016999,2]
[394095972,1763274640376,-419.49725884,0.00016999,2]
[394095973,1763274640385,-500.0,0.00016999,2]
[394095974,1763274640395,-500.0,0.00016999,2]
[394095975,1763274640410,-500.0,0.00016999,2]
[394095976,1763274640419,-622.78754304,0.00016999,2]
[394095977,1763274640427,-500.0,0.00017,7]
[394095978,1763274640436,-500.0,0.00017,7]
[394095979,1763274640446,-510.29,0.00017,7]
[394095980,1763274640455,-370.13,0.00017,7]
[394095981,1763274640465,-307.28,0.00017,7]
[394095982,1763274640475,-85597.3999862,0.00017,2]
[394095983,1763274640485,-152.896676,0.00017,2]
[394095984,1763274640494,-151.0,0.00017,2]
[394095985,1763274640503,-320.650649,0.00017,2]
[394095986,1763274640513,-320.650649,0.00017,2]
[394095987,1763274640523,-320.650649,0.00017,2]
[394095988,1763274640532,-320.650649,0.00017,2]
[394095989,1763274640541,-151.0,0.00017,2]
[394095990,1763274640550,-334.897074,0.00017,2]
[394095991,1763274640560,-151.0,0.00017,2]
[394095992,1763274640569,-151.0,0.00017,2]
[394095993,1763274640579,-334.897074,0.00017,2]
[394095994,1763274640588,-334.897074,0.00017,2]
[394095995,1763274640597,-334.897074,0.00017,2]
[394095996,1763274640606,-286.716588,0.00017,2]
[394095997,1763274640616,-151.0,0.00017,2]
[394095998,1763274640625,-151.0,0.00017,2]
[394095999,1763274640634,-286.716588,0.00017,2]
[394096000,1763274640643,-151.0,0.00017,2]
[394096001,1763274640652,-151.0,0.00017,2]
[394096002,1763274640662,-286.716588,0.00017,2]
[394096003,1763274640671,-151.0,0.00017,2]
[394096004,1763274640681,-187.966846,0.00017,2]
[394096005,1763274640691,-286.716588,0.00017,2]
[394096006,1763274640700,-1533.193367,0.00017,2]
[394096007,1763274640709,-1533.193367,0.00017,2]
[394096008,1763274640718,-151.0,0.00017,2]
[394096010,1763274640727,-151.0,0.00017,2]
[394096011,1763274640736,-165.666462,0.00017,2]
[394096012,1763274640744,-151.0,0.00017,2]
[394096013,1763274640753,-151.0,0.00017,2]
[394096014,1763274640762,-1533.193367,0.00017,2]
[394096015,1763274640771,-151.0,0.00017,2]
[394096016,1763274640781,-151.0,0.00017,2]
[394096017,1763274640790,-1533.193367,0.00017,2]
[394096018,1763274640799,-174.497614,0.00017,2]
[394096019,1763274640808,-151.0,0.00017,2]
[394096020,1763274640818,-174.497614,0.00017,2]
[394096021,1763274640827,-151.0,0.00017,2]
[394096022,1763274640836,-151.0,0.00017,2]
[394096023,1763274640845,-174.497614,0.00017,2]
[394096024,1763274640855,-174.497614,0.00017,2]
[394096025,1763274640864,-151.0,0.00017,2]
[394096026,1763274640874,-151.0,0.00017,2]
[394096027,1763274640883,-151.0,0.00017,2]
[394096028,1763274640892,-181.313631,0.00017,2]
[394096029,1763274640901,-154.892174,0.00017,2]
[394096030,1763274640911,-154.892174,0.00017,2]
[394096031,1763274640920,-151.0,0.00017,2]
[394096032,1763274640930,-151.0,0.00017,2]
[394096033,1763274640940,-154.892174,0.00017,2]
[394096034,1763274640950,-151.0,0.00017,2]
[394096035,1763274640959,-154.892174,0.00017,2]
[394096036,1763274640968,-151.0,0.00017,2]
[394096037,1763274640977,-151.0,0.00017,2]
[394096038,1763274640986,-234.216593,0.00017,2]
[394096039,1763274640996,-229.064224,0.00017,2]
[394096040,1763274641005,-160.531221,0.00017,2]
[394096041,1763274641014,-229.064224,0.00017,2]
[394096042,1763274641195,-151.0,0.00017,2]
[394096043,1763274641205,-151.0,0.00017,2]
[394096044,1763274641216,-287.06785,0.00017,2]
[394096045,1763274641225,-168.706241,0.00017,2]
[394096046,1763274641234,-229.064224,0.00017,2]
[394096047,1763274641243,-151.811139,0.00017,2]
[394096048,1763274641253,-168.706241,0.00017,2]
[394096049,1763274641262,-151.0,0.00017,2]
[394096050,1763274641271,-287.06785,0.00017,2]
[394096051,1763274641281,-229.064224,0.00017,2]
[394096052,1763274641291,-151.0,0.00017,2]
[394096053,1763274641301,-264.081708,0.00017,2]
[394096054,1763274641310,-151.0,0.00017,2]
[394096055,1763274641320,-168.706241,0.00017,2]
[394096056,1763274641336,-287.06785,0.00017,2]
[394096057,1763274641346,-264.081708,0.00017,2]
[394096058,1763274641355,-168.706241,0.00017,2]
[394096059,1763274641365,-287.06785,0.00017,2]
[394096060,1763274641375,-264.081708,0.00017,2]
[394096061,1763274641384,-264.081708,0.00017,2]
[394096062,1763274641394,-151.0,0.00017,2]
[394096063,1763274641411,-151.0,0.00017,2]
[394096064,1763274641420,-151.0,0.00017,2]
[394096065,1763274641429,-155.419484,0.00017,2]
[394096066,1763274641438,-187.597508,0.00017,2]
[394096067,1763274641450,-299.989097,0.00017,2]
[394096068,1763274641459,-200.0,0.00017026,2]
[394096069,1763274641468,-151.0,0.00017085,2]
[394096070,1763274641479,-277.35679052,0.00017085,2]
[394096071,1763274641488,-250.0,0.00017176,2]
[394096072,1763274641497,-222.22926538,0.00017697,2]
[394096073,1763274641507,-150.3326951,0.00017771,2]
[394096074,1763274641516,-879.66692,0.0001779,2]
[394096075,1763274641525,-2000.0,0.000178,2]
[394096076,1763274641534,-999.99,0.000178,2]
[394096077,1763274641543,-885.2,0.000178,2]
[394096078,1763274641552,-150.99,0.000178,2]
[394096079,1763274641562,-8060.3,0.000178,2]
[394096080,1763274641572,-3161.4,0.000178,2]
[394096081,1763274641581,-9999.99,0.000178,2]
[394096082,1763274641590,-151.0,0.000178,2]
[394096083,1763274641599,-151.0,0.000178,2]
[394096084,1763274641608,-156.693005,0.000178,2]
[394096085,1763274641618,-151.0,0.000178,2]
[394096086,1763274641628,-229.064224,0.000178,2]
[394096087,1763274641637,-229.064224,0.000178,2]
[394096088,1763274641646,-158.378135,0.000178,2]
[394096089,1763274641656,-151.0,0.000178,2]
[394096090,1763274641666,-287.06785,0.000178,2]
[394096091,1763274641676,-229.064224,0.000178,2]
[394096092,1763274641687,-151.0,0.000178,2]
[394096093,1763274641697,-229.064224,0.000178,2]
[394096094,1763274641706,-287.06785,0.000178,2]
[394096095,1763274641715,-151.0,0.000178,2]
[394096096,1763274641724,-264.081708,0.000178,2]
[394096097,1763274641734,-151.0,0.000178,2]
[394096098,1763274641743,-287.06785,0.000178,2]
[394096099,1763274641753,-264.081708,0.000178,2]
[394096100,1763274641762,-287.06785,0.000178,2]
[394096101,1763274641772,-264.081708,0.000178,2]
[394096102,1763274641782,-151.0,0.000178,2]
[394096103,1763274641801,-151.0,0.000178,2]
[394096104,1763274641815,-151.0,0.000178,2]
[394096105,1763274641825,-264.081708,0.000178,2]
[394096106,1763274641834,-155.419484,0.000178,2]
[394096107,1763274641843,-200.0,0.00017856,2]
[394096108,1763274641853,-1746.1,0.00017856,2]
[394096109,1763274641862,-151.0,0.00017856,2]
[394096110,1763274641871,-151.0,0.00017856,2]
[394096111,1763274641881,-151.0,0.00017856,2]
[394096112,1763274641891,-151.0,0.00017856,2]
[394096113,1763274641900,-151.0,0.00017856,2]
[394096114,1763274641909,-151.0,0.00017856,2]
[394096115,1763274641919,-186.668261,0.00017856,2]
[394096116,1763274641928,-151.0,0.00017856,2]
[394096117,1763274641938,-186.668261,0.00017856,2]
[394096118,1763274641948,-186.668261,0.00017856,2]
[394096119,1763274641957,-186.668261,0.00017856,2]
[394096120,1763274641967,-151.0,0.00017856,2]
[394096121,1763274641976,-151.0,0.00017856,2]
[394096122,1763274641986,-153.633799,0.00017856,2]
[394096123,1763274641995,-151.0,0.00017856,2]
[394096124,1763274642004,-151.0,0.00017856,2]
[394096125,1763274642013,-151.0,0.00017856,2]
[394096126,1763274642023,-151.0,0.00017856,2]
[394096127,1763274642032,-151.0,0.00017856,2]
[394096128,1763274642042,-320.650649,0.00017856,2]
[394096129,1763274642051,-151.0,0.00017856,2]
[394096130,1763274642061,-320.650649,0.00017856,2]
[394096131,1763274642070,-151.0,0.00017856,2]
[394096132,1763274642079,-320.650649,0.00017856,2]
[394096133,1763274642089,-320.650649,0.00017856,2]
[394096134,1763274642098,-151.0,0.00017856,2]
[394096135,1763274642108,-151.0,0.00017856,2]
[394096136,1763274642117,-334.897074,0.00017856,2]
[394096137,1763274642126,-240.358672,0.00017856,2]
[394096138,1763274642136,-152.971918,0.00017856,2]
[394096139,1763274642145,-334.897074,0.00017856,2]
[394096140,1763274642154,-334.897074,0.00017856,2]
[394096141,1763274642163,-334.897074,0.00017856,2]
[394096142,1763274642178,-286.716588,0.00017856,2]
[394096143,1763274642187,-151.0,0.00017856,2]
[394096144,1763274642197,-151.0,0.00017856,2]
[394096145,1763274642207,-286.716588,0.00017856,2]
[394096146,1763274642216,-151.0,0.00017856,2]
[394096147,1763274642226,-151.0,0.00017856,2]
[394096148,1763274642235,-286.716588,0.00017856,2]
[394096149,1763274642245,-151.0,0.00017856,2]
[394096150,1763274642255,-286.716588,0.00017856,2]
[394096151,1763274642268,-1533.193367,0.00017856,2]
[394096152,1763274642284,-1533.193367,0.00017856,2]
[394096153,1763274642301,-151.0,0.00017856,2]
[394096154,1763274642315,-151.0,0.00017856,2]
[394096155,1763274642331,-151.0,0.00017856,2]
[394096156,1763274642347,-151.0,0.00017856,2]
[394096157,1763274642363,-1533.193367,0.00017856,2]
[394096158,1763274642377,-227.374883,0.00017856,2]
[394096159,1763274642390,-1533.193367,0.00017856,2]
[394096160,1763274642408,-151.0,0.00017856,2]
[394096161,1763274642424,-174.497614,0.00017856,2]
[394096162,1763274642440,-151.0,0.00017856,2]
[394096163,1763274642456,-174.497614,0.00017856,2]
[394096164,1763274642472,-151.0,0.00017856,2]
[394096165,1763274642488,-151.0,0.00017856,2]
[394096166,1763274642502,-174.497614,0.00017856,2]
[394096167,1763274642517,-174.497614,0.00017856,2]
[394096168,1763274642534,-151.0,0.00017856,2]
[394096169,1763274642548,-159.242683,0.00017856,2]
[394096170,1763274642561,-151.0,0.00017856,2]
[394096171,1763274642573,-154.892174,0.00017856,2]
[394096172,1763274642589,-154.892174,0.00017856,2]
[394096173,1763274642602,-151.0,0.00017856,2]
[394096174,1763274642613,-151.0,0.00017856,2]
[394096175,1763274642626,-154.892174,0.00017856,2]
[394096176,1763274642642,-151.0,0.00017856,2]
[394096177,1763274642654,-154.892174,0.00017856,2]
[394096178,1763274642666,-151.0,0.00017856,2]
[394096179,1763274642679,-229.064224,0.00017856,2]
[394096180,1763274642693,-229.064224,0.00017856,2]
[394096181,1763274642707,-176.344645,0.00017856,2]
[394096182,1763274642725,-287.06785,0.00017856,2]
[394096183,1763274642739,-168.706241,0.00017856,2]
[394096184,1763274642753,-229.064224,0.00017856,2]
[394096185,1763274642766,-168.706241,0.00017856,2]
[394096186,1763274642779,-229.064224,0.00017856,2]
[394096187,1763274642791,-151.0,0.00017856,2]
[394096188,1763274642803,-287.06785,0.00017856,2]
[394096189,1763274642816,-151.0,0.00017856,2]
[394096190,1763274642828,-168.706241,0.00017856,2]
[394096191,1763274642841,-151.0,0.00017856,2]
[394096192,1763274642855,-264.081708,0.00017856,2]
[394096193,1763274642868,-287.06785,0.00017856,2]
[394096194,1763274642880,-168.706241,0.00017856,2]
[394096195,1763274642893,-264.081708,0.00017856,2]
[394096196,1763274642905,-287.06785,0.00017856,2]
[394096197,1763274642918,-264.081708,0.00017856,2]
[394096198,1763274642931,-151.0,0.00017856,2]
[394096199,1763274642944,-151.0,0.00017856,2]
[394096200,1763274642957,-151.0,0.00017856,2]
[394096201,1763274642969,-264.081708,0.00017856,2]
[394096202,1763274642982,-155.419484,0.00017856,2]
[394096203,1763274642995,-809.79026724,0.000179,2]
[394096204,1763274643008,-1017.419,0.00017964,2]
[394096205,1763274643021,-369.0,0.00017966,2]
[394096206,1763274643034,-8000.905071,0.00017971,2]
[394096207,1763274643047,-200.0,0.00017971,2]
[394096208,1763274643059,-249.696658,0.00017971,2]
[394096211,1763274643072,-249.696658,0.00017971,2]
[394096213,1763274643085,-249.696658,0.00017971,2]
[394096215,1763274643098,-249.696658,0.00017971,2]
[394096217,1763274643110,-249.696658,0.00017971,2]
[394096220,1763274643122,-249.696658,0.00017971,2]
[394096222,1763274643135,-249.696658,0.00017971,2]
[394096224,1763274643147,-249.696658,0.00017971,2]
[394096226,1763274643159,-249.696658,0.00017971,2]
[394096227,1763274643172,-151.0,0.00017971,2]
[394096228,1763274643186,-151.0,0.00017971,2]
[394096229,1763274643199,-158.393141,0.00017971,2]
[394096230,1763274643212,-249.696658,0.00017971,2]
[394096231,1763274643224,-249.696658,0.00017971,2]
[394096233,1763274643237,-249.696658,0.00017971,2]
[394096234,1763274643250,-151.0,0.00017971,2]
[394096235,1763274643262,-151.0,0.00017971,2]
[394096236,1763274643274,-151.0,0.00017971,2]
[394096237,1763274643287,-157.507306,0.00017971,2]
[394096240,1763274643299,-151.0,0.00017971,2]
[394096243,1763274643312,-151.0,0.00017971,2]
[394096246,1763274643324,-152.748032,0.00017971,2]
[394096249,1763274643337,-151.0,0.00017971,2]
[394096252,1763274643349,-280.368315,0.00017971,2]
[394096254,1763274643361,-151.0,0.00017971,2]
[394096255,1763274643374,-153.877264,0.00017971,2]
[394096256,1763274643386,-151.0,0.00017971,2]
[394096257,1763274643399,-151.0,0.00017971,2]
[394096258,1763274643412,-151.0,0.00017971,2]
[394096259,1763274643425,-151.0,0.00017971,2]
[394096260,1763274643438,-151.0,0.00017971,2]
[394096261,1763274643451,-151.0,0.00017971,2]
[394096262,1763274643464,-151.0,0.00017971,2]
[394096263,1763274643477,-151.0,0.00017971,2]
[394096264,1763274643489,-151.0,0.00017971,2]
[394096265,1763274643502,-151.0,0.00017971,2]
[394096266,1763274643514,-151.0,0.00017971,2]
[394096267,1763274643527,-151.0,0.00017971,2]
[394096268,1763274643540,-151.0,0.00017971,2]
[394096269,1763274643552,-151.0,0.00017971,2]
[394096270,1763274643565,-151.0,0.00017971,2]
[394096271,1763274643577,-151.0,0.00017971,2]
[394096272,1763274643589,-151.0,0.00017971,2]
[394096273,1763274643602,-155.639896,0.00017971,2]
[394096274,1763274643615,-198.451936,0.00017971,2]
[394096275,1763274643627,-151.0,0.00017971,2]
[394096276,1763274643639,-151.0,0.00017971,2]
[394096277,1763274643652,-202.005094,0.00017971,2]
[394096278,1763274643664,-151.0,0.00017971,2]
[394096279,1763274643677,-151.0,0.00017971,2]
[394096280,1763274643691,-166.249349,0.00017971,2]
[394096281,1763274643702,-151.0,0.00017971,2]
[394096282,1763274643711,-153.708628,0.00017971,2]
[394096283,1763274643720,-151.0,0.00017971,2]
[394096284,1763274643955,-151.0,0.00017971,2]
[394096285,1763274643986,-151.0,0.00017971,2]
[394096286,1763274643999,-166.077357,0.00017971,2]
[394096287,1763274644008,-151.0,0.00017971,2]
[394096289,1763274644018,-151.0,0.00017971,2]
[394096291,1763274644027,-273.663209,0.00017971,2]
[394096293,1763274644036,-151.0,0.00017971,2]
[394096294,1763274644045,-158.354669,0.00017971,2]
[394096295,1763274644054,-151.0,0.00017971,2]
[394096296,1763274644063,-151.0,0.00017971,2]
[394096297,1763274644073,-163.405208,0.00017971,2]
[394096298,1763274644081,-151.0,0.00017971,2]
[394096299,1763274644091,-157.562104,0.00017971,2]
[394096300,1763274644100,-151.0,0.00017971,2]
[394096301,1763274644110,-151.0,0.00017971,2]
[394096302,1763274644119,-176.081352,0.00017971,2]
[394096303,1763274644128,-151.0,0.00017971,2]
[394096304,1763274644137,-151.0,0.00017971,2]
[394096305,1763274644146,-151.0,0.00017971,2]
[394096306,1763274644155,-166.199414,0.00017971,2]
[394096307,1763274644164,-151.0,0.00017971,2]
[394096308,1763274644173,-164.859953,0.00017971,2]
[394096309,1763274644181,-224.310881,0.00017971,2]
[394096310,1763274644190,-151.0,0.00017971,2]
[394096311,1763274644199,-151.0,0.00017971,2]
[394096312,1763274644208,-151.0,0.00017971,2]
[394096313,1763274644217,-151.0,0.00017971,2]
[394096314,1763274644226,-199.111985,0.00017971,2]
[394096315,1763274644235,-151.0,0.00017971,2]
[394096316,1763274644244,-285.69320133,0.00017971,2]
[394096317,1763274644253,-151.0,0.00017971,2]
[394096318,1763274644262,-151.0,0.00017971,2]
[394096319,1763274644272,-161.625024,0.00017971,2]
[394096320,1763274644281,-151.0,0.00017971,2]
[394096321,1763274644290,-157.625604,0.00017971,2]
[394096322,1763274644299,-151.0,0.00017971,2]
[394096323,1763274644308,-151.0,0.00017971,2]
[394096324,1763274644317,-151.0,0.00017971,2]
[394096325,1763274644326,-151.0,0.00017971,2]
[394096326,1763274644335,-152.417011,0.00017971,2]
[394096327,1763274644345,-151.0,0.00017971,2]
[394096328,1763274644354,-151.0,0.00017971,2]
[394096329,1763274644363,-151.0,0.00017971,2]
[394096330,1763274644372,-151.0,0.00017971,2]
[394096331,1763274644381,-151.0,0.00017971,2]
[394096332,1763274644390,-151.0,0.00017971,2]
[394096333,1763274644404,-151.0,0.00017971,2]
[394096334,1763274644414,-151.0,0.00017971,2]